bitfinex/quotes_BTCUSD_20220207
["timestamp","ask_amount","ask_price","bid_price","bid_amount"]
[1644263203650,0.78799819,44424.0,44423.0,0.93837496]
[1644263206697,0.78777305,44424.0,44423.0,0.93837496]
[1644263207599,0.70773302,44424.0,44423.0,0.93837496]
[1644263208198,0.69503302,44424.0,44423.0,0.93837496]
[1644263213102,0.68233302,44424.0,44423.0,0.93837496]
[1644263213305,0.68206208,44424.0,44423.0,0.93837496]
[1644263217857,0.98206208,44424.0,44420.0,0.30163156]
[1644263218059,0.98206208,44424.0,44407.0,0.05]
[1644263218060,0.056287,44418.0,44400.0,0.64058521]
[1644263218260,0.345,44417.0,44400.0,0.64058521]
[1644263218461,0.07351319,44401.0,44400.0,0.64058521]
[1644263218654,0.84026438,44401.0,44400.0,0.64058521]
[1644263218856,0.84026438,44401.0,44400.0,0.54058521]
[1644263218857,1.32142975,44401.0,44400.0,0.54058521]
[1644263219057,1.12142975,44401.0,44400.0,0.54058521]
[1644263219359,1.45,44400.0,44388.0,0.02008521]
[1644263219555,0.5628,44397.0,44388.0,0.02008521]
[1644263219756,0.126211,44396.0,44388.0,0.02008521]
[1644263219960,0.17619086,44397.0,44388.0,0.02008521]
[1644263220159,0.045,44396.0,44395.0,0.05]
[1644263220413,0.168972,44404.0,44392.0,0.05]
[1644263220614,0.045,44396.0,44392.0,0.05]
[1644263220813,0.5,44397.0,44392.0,0.05]
[1644263221036,0.5,44397.0,44396.0,0.05]
[1644263221212,0.5,44407.0,44396.0,0.05]
[1644263221411,0.5,44407.0,44402.0,0.05]
[1644263221616,0.04138913,44415.0,44406.0,0.05]
[1644263221812,0.5,44413.0,44410.0,0.05]
[1644263222020,0.5,44413.0,44411.0,0.045]
[1644263222413,0.5,44415.0,44411.0,0.045]
[1644263222611,0.73,44415.0,44411.0,0.045]
[1644263223014,0.23,44415.0,44414.0,0.05]
[1644263223212,0.23,44415.0,44411.0,0.045]
[1644263223413,0.23,44415.0,44414.0,0.05]
[1644263224251,0.23,44415.0,44414.0,0.025]
[1644263224657,0.00060764,44417.0,44414.0,0.025]
[1644263224856,0.47103814,44424.0,44416.0,0.606699]
[1644263225054,0.47103814,44424.0,44423.0,0.346499]
[1644263225254,0.47103814,44424.0,44422.0,0.045]
[1644263225455,0.44971047,44424.0,44422.0,0.045]
[1644263226053,0.43073441,44424.0,44422.0,0.045]
[1644263226454,0.43073441,44424.0,44421.0,0.19967278]
[1644263226752,0.42573441,44424.0,44420.0,0.025]
[1644263227553,0.42623258,44424.0,44422.0,0.22128219]
[1644263227803,0.42623258,44424.0,44423.0,0.06753258]
[1644263228001,0.42623258,44424.0,44423.0,0.04753258]
[1644263228402,0.42573441,44424.0,44423.0,0.04753258]
[1644263228603,0.02487741,44414.0,44413.0,0.00073064]
[1644263228802,0.07824935,44413.0,44412.0,0.056278]
[1644263229004,0.07824935,44413.0,44412.0,0.82955064]
[1644263229203,0.07824935,44413.0,44412.0,0.93745781]
[1644263229401,0.07824935,44413.0,44412.0,1.03745781]
[1644263229602,0.07824935,44413.0,44412.0,0.73568417]
[1644263229806,0.07824935,44413.0,44412.0,0.63568417]
[1644263230603,0.07824935,44413.0,44412.0,0.73568417]
[1644263230802,0.01071677,44413.0,44412.0,0.73568417]
[1644263231002,0.01071677,44413.0,44412.0,0.67940617]
[1644263231204,0.01071677,44413.0,44412.0,0.77940617]
[1644263231404,0.01071677,44413.0,44412.0,0.57940617]
[1644263232054,0.01071677,44413.0,44412.0,0.321499]
[1644263232257,0.01071677,44413.0,44406.0,0.056281]
[1644263232463,0.01071677,44413.0,44408.0,0.1]
[1644263232853,0.02181141,44414.0,44409.0,0.45]
[1644263233054,0.02181141,44414.0,44412.0,0.25643476]
[1644263233456,0.23,44413.0,44412.0,0.57793376]
[1644263233657,0.16246742,44413.0,44412.0,0.67793376]
[1644263233854,0.16246742,44413.0,44412.0,0.77793376]
[1644263234855,0.16246742,44413.0,44412.0,0.89047276]
[1644263235703,0.16246742,44413.0,44412.0,0.84047276]
[1644263236706,0.09493484,44413.0,44412.0,0.84047276]
[1644263237307,0.01489481,44413.0,44412.0,0.321499]
[1644263237510,0.01489481,44413.0,44410.0,0.00026437]
[1644263237511,0.23435058,44410.0,44409.0,0.00026437]
[1644263237712,0.07092301,44410.0,44407.0,0.00026437]
[1644263237908,0.07092301,44410.0,44404.0,0.02158235]
[1644263238107,0.04287527,44410.0,44404.0,0.02184672]
[1644263238308,0.05,44409.0,44406.0,0.00076109]
[1644263238609,0.24286423,44408.0,44406.0,0.00076109]
[1644263239454,0.24286423,44408.0,44405.0,0.00026437]
[1644263239653,0.17533165,44408.0,44405.0,0.00076111]
[1644263239854,0.17533165,44408.0,44405.0,0.00102548]
[1644263240261,0.17533165,44408.0,44405.0,0.00076111]
[1644263240653,0.17533165,44408.0,44402.0,0.00026437]
[1644263240853,0.17533165,44408.0,44401.0,0.39207329]
[1644263240854,0.17533165,44408.0,44404.0,0.00076111]
[1644263241054,0.05,44406.0,44404.0,0.00076111]
[1644263241262,0.32734699,44405.0,44404.0,0.00076111]
[1644263241855,0.32734699,44405.0,44399.0,0.00026437]
[1644263242057,0.32734699,44405.0,44402.0,0.00076114]
[1644263242256,0.045,44405.0,44402.0,0.00076114]
[1644263242820,0.67960071,44405.0,44402.0,0.00076114]
[1644263243013,0.03780769,44403.0,44397.0,0.00026437]
[1644263243213,0.03780769,44403.0,44401.0,0.00076115]
[1644263243413,0.03780769,44402.0,44401.0,0.00076115]
[1644263244213,0.03780769,44402.0,44396.0,0.00026437]
[1644263244214,0.31283493,44402.0,44396.0,0.00026437]
[1644263244415,0.07793341,44400.0,44399.0,0.00076118]
[1644263244616,0.1157411,44400.0,44399.0,0.00076118]
[1644263244918,0.4106846,44400.0,44399.0,0.00076118]
[1644263245117,0.69986667,44400.0,44399.0,0.00076118]
[1644263245321,0.69986667,44400.0,44394.0,0.00026437]
[1644263245517,0.03780769,44395.0,44393.0,0.00026437]
[1644263245719,0.045,44394.0,44392.0,0.02125512]
[1644263246119,0.045,44394.0,44391.0,0.00330965]
[1644263246550,0.045,44394.0,44391.0,0.00026437]
[1644263246750,0.045,44394.0,44390.0,0.01830964]
[1644263246751,0.02658711,44392.0,44390.0,0.01830964]
[1644263246951,0.02658711,44392.0,44391.0,0.00026437]
[1644263247150,0.045,44391.0,44390.0,0.01907094]
[1644263247955,0.045,44391.0,44390.0,0.01830964]
[1644263248252,0.07158711,44391.0,44390.0,0.01830964]
[1644263248651,0.07158711,44391.0,44389.0,0.00026437]
[1644263248851,0.07158711,44391.0,44388.0,0.00102569]
[1644263249052,0.03378642,44391.0,44388.0,0.00026437]
[1644263249252,0.02658711,44390.0,44388.0,0.00076133]
[1644263249451,0.045,44389.0,44388.0,0.0010257]
[1644263249652,0.045,44389.0,44388.0,0.00076133]
[1644263250311,0.65,44388.0,44384.0,0.056235]
[1644263250510,0.65,44388.0,44386.0,0.00076135]
[1644263250907,0.65,44388.0,44386.0,0.00026135]
[1644263251106,0.31948778,44389.0,44386.0,0.00026135]
[1644263251506,0.31921678,44389.0,44384.0,0.056235]
[1644263251707,0.044729,44389.0,44380.0,0.056235]
[1644263251910,0.22719898,44386.0,44380.0,0.056235]
[1644263252109,0.2530222,44389.0,44380.0,0.056235]
[1644263252308,0.045,44389.0,44381.0,0.2590092]
[1644263252707,0.04432007,44389.0,44381.0,0.2590092]
[1644263252908,0.0001863,44388.0,44380.0,0.056235]
[1644263253115,0.19596298,44386.0,44375.0,0.156235]
[1644263253310,0.3,44385.0,44375.0,0.156235]
[1644263253513,0.05,44380.0,44375.0,0.1]
[1644263253709,0.05,44378.0,44375.0,0.15408143]
[1644263253910,0.13564147,44378.0,44375.0,0.1]
[1644263254180,0.13564147,44378.0,44375.0,0.14114145]
[1644263254480,0.13564147,44378.0,44375.0,0.10076149]
[1644263255082,0.09713313,44378.0,44375.0,0.1]
[1644263255278,0.25295613,44376.0,44375.0,0.1]
[1644263255681,0.01071941,44376.0,44375.0,0.3368272]
[1644263256079,0.28571941,44376.0,44375.0,0.3368272]
[1644263256281,0.28571941,44376.0,44375.0,0.1]
[1644263256480,0.28571941,44376.0,44375.0,0.3830272]
[1644263256679,0.275,44376.0,44375.0,0.3830272]
[1644263257081,0.28571941,44376.0,44375.0,0.3830272]
[1644263257911,0.28571941,44376.0,44375.0,0.1]
[1644263258112,0.28571941,44376.0,44375.0,0.3857272]
[1644263258317,0.275,44376.0,44375.0,0.3857272]
[1644263258611,0.28571941,44376.0,44375.0,0.3857272]
[1644263259212,0.28571941,44376.0,44375.0,0.35942704]
[1644263259613,0.28571941,44376.0,44375.0,0.1]
[1644263260610,0.71145382,44376.0,44375.0,0.1]
[1644263261115,0.71145382,44376.0,44375.0,0.075]
[1644263261960,0.98650738,44376.0,44375.0,0.075]
[1644263262360,0.71145382,44376.0,44375.0,0.075]
[1644263263365,0.71145382,44376.0,44375.0,0.07]
[1644263265606,0.66645382,44376.0,44375.0,0.07]
[1644263266012,0.65573441,44376.0,44375.0,0.10928059]
[1644263266206,0.65573441,44376.0,44375.0,0.07]
[1644263266805,0.65573441,44376.0,44375.0,0.10928059]
[1644263267007,0.65573441,44376.0,44375.0,0.33132046]
[1644263267205,0.65573441,44376.0,44375.0,0.29203987]
[1644263267707,0.65573441,44376.0,44375.0,0.07]
[1644263268107,0.66645382,44376.0,44375.0,0.07]
[1644263268708,0.65573441,44376.0,44375.0,0.07]
[1644263269758,0.65546325,44376.0,44375.0,0.07]
[1644263269958,0.65546325,44376.0,44367.0,0.47996905]
[1644263270360,0.65546325,44376.0,44368.0,0.321499]
[1644263271457,0.65546325,44376.0,44370.0,0.11265]
[1644263271662,0.65546325,44376.0,44374.0,0.21915359]
[1644263271862,0.65546325,44376.0,44375.0,0.41556303]
[1644263272059,0.67685497,44376.0,44375.0,0.73177971]
[1644263272261,0.67685497,44376.0,44375.0,0.83177971]
[1644263272661,0.67685497,44376.0,44375.0,0.91595416]
[1644263272907,0.67685497,44376.0,44375.0,0.60105247]
[1644263273106,0.67685497,44376.0,44375.0,0.572821]
[1644263274106,0.65546325,44376.0,44375.0,0.572821]
[1644263274409,0.65546325,44376.0,44375.0,0.271499]
[1644263274608,0.65546325,44376.0,44375.0,0.171499]
[1644263274806,0.65546325,44376.0,44374.0,0.262631]
[1644263275010,0.65546325,44376.0,44371.0,0.00076144]
[1644263275205,0.65546325,44376.0,44372.0,0.371614]
[1644263275406,0.65546325,44376.0,44374.0,0.321614]
[1644263275906,0.65546325,44376.0,44374.0,0.15]
[1644263276868,0.65546325,44376.0,44372.0,0.35989651]
[1644263277067,0.65546325,44376.0,44373.0,0.321614]
[1644263277266,0.65546325,44376.0,44373.0,0.421614]
[1644263278166,0.65546325,44376.0,44373.0,0.321614]
[1644263278368,0.65546325,44376.0,44371.0,0.00076143]
[1644263278569,0.05,44375.0,44371.0,0.00076143]
[1644263278768,0.149951,44374.0,44371.0,0.00076143]
[1644263278973,0.14959822,44374.0,44371.0,0.00076143]
[1644263279171,0.08398446,44367.0,44365.0,0.05199443]
[1644263279371,0.26180047,44372.0,44366.0,0.321614]
[1644263279571,0.26180047,44372.0,44365.0,0.05199443]
[1644263279972,0.01818291,44370.0,44365.0,0.05199443]
[1644263280171,0.01818291,44370.0,44366.0,0.321674]
[1644263281105,0.0672567,44368.0,44366.0,0.321674]
[1644263285762,0.01929877,44372.0,44366.0,0.321674]
[1644263285960,0.03953437,44372.0,44367.0,0.045]
[1644263286160,0.03953437,44372.0,44368.0,0.321674]
[1644263286358,0.0202356,44372.0,44368.0,0.366674]
[1644263286558,0.04019557,44375.0,44370.0,0.321674]
[1644263286762,0.00062474,44374.0,44372.0,0.26130366]
[1644263287558,0.04019557,44375.0,44372.0,0.26130366]
[1644263287809,0.04082035,44375.0,44372.0,0.2615652]
[1644263288008,0.04082035,44375.0,44373.0,0.05619396]
[1644263288207,0.04054907,44375.0,44374.0,0.366674]
[1644263288509,0.01962596,44378.0,44375.0,1.5852]
[1644263288510,0.04054907,44376.0,44375.0,1.5852]
[1644263288809,0.04054907,44376.0,44375.0,11.221774]
[1644263289007,0.04054907,44376.0,44375.0,11.53328244]
[1644263290810,0.04054907,44376.0,44375.0,11.48328244]
[1644263291011,0.00018743,44378.0,44377.0,0.513181]
[1644263291211,0.00714399,44380.0,44378.0,1.45]
[1644263291412,0.00714399,44380.0,44379.0,0.6659331]
[1644263291668,0.00714399,44380.0,44379.0,0.7159331]
[1644263291868,0.00714399,44380.0,44379.0,0.8659331]
[1644263292268,0.01951778,44389.0,44382.0,0.056309]
[1644263292469,0.01951778,44389.0,44386.0,0.25153987]
[1644263292667,0.01951778,44389.0,44387.0,0.321592]
[1644263293170,0.01951778,44389.0,44387.0,0.471592]
[1644263293468,0.01951778,44389.0,44387.0,0.321592]
[1644263294068,0.06951778,44389.0,44387.0,0.321592]
[1644263294268,0.05,44389.0,44387.0,0.321592]
[1644263294870,0.0492377,44389.0,44387.0,0.321592]
[1644263295515,0.00062371,44390.0,44389.0,0.321592]
[1644263295708,0.00062371,44390.0,44389.0,0.466592]
[1644263295909,0.00062371,44390.0,44389.0,0.516592]
[1644263296108,0.004,44406.0,44389.0,0.466592]
[1644263296308,0.0197819,44398.0,44397.0,0.106296]
[1644263297712,0.0197819,44398.0,44397.0,0.477888]
[1644263297913,0.0197819,44398.0,44397.0,0.622888]
[1644263298113,0.004,44406.0,44399.0,1.45]
[1644263298314,0.0192748,44407.0,44406.0,0.377868]
[1644263298513,0.0192748,44407.0,44406.0,0.472868]
[1644263298715,0.0192748,44407.0,44406.0,10.24198733]
[1644263298912,0.0192748,44407.0,44406.0,10.04133904]
[1644263299165,0.0192748,44407.0,44406.0,10.14133904]
[1644263299365,0.0192748,44407.0,44406.0,10.19133904]
[1644263300568,0.0065748,44407.0,44406.0,10.19133904]
[1644263300968,0.0065748,44407.0,44406.0,10.20403904]
[1644263301367,0.23,44407.0,44406.0,9.88244704]
[1644263301569,0.00062215,44409.0,44407.0,1.45]
[1644263301768,0.00062215,44409.0,44408.0,0.92044527]
[1644263301969,0.00062215,44409.0,44408.0,1.17044527]
[1644263302169,0.002,44414.0,44412.0,0.321592]
[1644263302371,0.00137785,44414.0,44413.0,0.321592]
[1644263302572,0.00137785,44414.0,44413.0,0.68443158]
[1644263302821,0.00137785,44414.0,44413.0,0.78214305]
[1644263303016,0.00137785,44414.0,44413.0,0.46430347]
[1644263303816,0.00092072,44414.0,44413.0,0.46430347]
[1644263304916,0.00092072,44414.0,44413.0,0.48655884]
[1644263305315,0.00092072,44414.0,44413.0,0.79306894]
[1644263306557,0.00082467,44414.0,44413.0,0.86401875]
[1644263306759,0.00082467,44414.0,44413.0,0.79306894]
[1644263307558,0.00082467,44414.0,44413.0,0.48655884]
[1644263308959,0.00082467,44414.0,44413.0,0.47655884]
[1644263309760,0.00082467,44414.0,44413.0,0.37655884]
[1644263309967,0.00363223,44414.0,44413.0,0.33155884]
[1644263310322,0.00363223,44414.0,44413.0,0.02225537]
[1644263310708,0.09830811,44417.0,44411.0,0.02225537]
[1644263310908,0.19205986,44416.0,44411.0,0.02225537]
[1644263311707,0.19143771,44416.0,44411.0,0.02225537]
[1644263311909,0.19205986,44416.0,44411.0,0.02225537]
[1644263312707,0.34205986,44416.0,44411.0,0.02225537]
[1644263312912,0.34143771,44416.0,44411.0,0.02225537]
[1644263313112,0.34205986,44416.0,44411.0,0.02225537]
[1644263314062,0.46880977,44416.0,44411.0,0.08]
[1644263314266,0.200416,44415.0,44411.0,0.08]
[1644263315062,0.3536835,44412.0,44411.0,1.08]
[1644263315262,0.42060405,44412.0,44411.0,1.08]
[1644263315665,0.81574901,44412.0,44411.0,1.08]
[1644263316062,0.81574901,44412.0,44411.0,0.56493595]
[1644263316464,1.10121606,44412.0,44411.0,0.56493595]
[1644263317062,1.10121606,44412.0,44411.0,0.58719132]
[1644263317063,1.15121606,44412.0,44411.0,0.58719132]
[1644263318213,1.15121606,44412.0,44411.0,0.56755923]
[1644263319017,1.15801139,44412.0,44411.0,0.56755923]
[1644263319617,1.15801139,44412.0,44411.0,0.14214347]
[1644263320722,1.15731723,44412.0,44411.0,0.14214347]
[1644263321419,1.15858418,44412.0,44411.0,0.14214347]
[1644263321865,0.51970467,44412.0,44411.0,0.14214347]
[1644263322065,0.51233655,44412.0,44411.0,0.14214347]
[1644263323568,0.745416,44412.0,44411.0,0.14214347]
[1644263323773,0.5,44412.0,44411.0,0.14214347]
[1644263323967,0.5,44412.0,44411.0,2.86342347]
[1644263324369,0.00062215,44414.0,44411.0,2.96342347]
[1644263324570,0.00062215,44414.0,44413.0,0.056276]
[1644263324771,0.5,44419.0,44414.0,1.45]
[1644263324972,0.002,44420.0,44414.0,1.45]
[1644263324973,0.002,44420.0,44418.0,0.05]
[1644263325170,0.002,44420.0,44419.0,0.32138]
[1644263325420,0.002,44420.0,44419.0,0.47138]
[1644263326022,0.002,44420.0,44419.0,0.78679951]
[1644263327017,0.00192436,44420.0,44419.0,0.47138]
[1644263327218,0.06128085,44424.0,44420.0,1.15]
[1644263327421,0.06128085,44424.0,44423.0,0.05]
[1644263327618,0.06128085,44424.0,44423.0,0.41638]
[1644263328020,0.06128085,44424.0,44423.0,0.36638]
[1644263328220,0.06128085,44424.0,44423.0,0.43863537]
[1644263328824,0.06128085,44424.0,44423.0,0.38863537]
[1644263329063,0.06128085,44424.0,44423.0,0.11725537]
[1644263329262,0.06128085,44424.0,44423.0,0.21725537]
[1644263330266,0.06128085,44424.0,44423.0,0.43863537]
[1644263330465,0.06128085,44424.0,44423.0,0.26725537]
[1644263330666,0.06128085,44424.0,44423.0,0.89378804]
[1644263330865,0.06128085,44424.0,44423.0,0.57240804]
[1644263331066,0.0001,44430.0,44424.0,1.506253]
[1644263331275,0.00062013,44426.0,44425.0,0.49365601]
[1644263331465,0.00062013,44426.0,44425.0,1.11772755]
[1644263331666,0.00062013,44426.0,44425.0,0.80846236]
[1644263332065,0.0001,44430.0,44425.0,1.1249979]
[1644263332268,0.0001,44430.0,44429.0,0.68760486]
[1644263332669,0.0001,44430.0,44429.0,0.78760486]
[1644263333920,1.551e-05,44432.0,44430.0,1.0]
[1644263334115,1.551e-05,44432.0,44431.0,0.32138]
[1644263334316,1.551e-05,44432.0,44431.0,0.42138]
[1644263334516,0.003,44434.0,44431.0,0.42138]
[1644263334716,0.003,44434.0,44432.0,0.10625]
[1644263334916,0.003,44434.0,44432.0,0.42763]
[1644263335116,0.003,44434.0,44432.0,0.49868076]
[1644263335315,0.003,44434.0,44432.0,0.88991454]
[1644263335715,0.003,44434.0,44432.0,0.93491454]
[1644263337468,0.003,44434.0,44432.0,0.86386378]
[1644263337667,0.003,44434.0,44432.0,0.81386378]
[1644263337867,0.002,44435.0,44433.0,1.45]
[1644263337868,0.001,44435.0,44433.0,1.45]
[1644263338067,0.001,44435.0,44434.0,0.36638]
[1644263338267,0.001,44435.0,44434.0,0.46638]
[1644263338670,0.3581581,44450.0,44436.0,0.377625]
[1644263338872,0.26408586,44443.0,44439.0,0.24877401]
[1644263340172,0.056253,44448.0,44439.0,0.24877401]
[1644263340422,0.200416,44448.0,44439.0,0.24877401]
[1644263340622,0.0021,44450.0,44439.0,0.24634469]
[1644263340822,0.200416,44449.0,44439.0,0.24634469]
[1644263341021,0.200416,44449.0,44440.0,0.02225537]
[1644263341221,0.200416,44449.0,44445.0,2.29642561]
[1644263341222,0.26920559,44446.0,44445.0,2.29642561]
[1644263341423,0.26920559,44446.0,44440.0,0.02225537]
[1644263341623,0.306674,44445.0,44440.0,0.02225537]
[1644263341829,0.200416,44444.0,44440.0,0.02225537]
[1644263342824,0.312942,44444.0,44440.0,0.02225537]
[1644263343023,0.112526,44444.0,44440.0,0.02225537]
[1644263343224,0.200416,44443.0,44440.0,0.02301814]
[1644263343423,0.250416,44443.0,44440.0,0.02301814]
[1644263343624,0.05,44443.0,44440.0,0.02301814]
[1644263343823,0.200416,44442.0,44440.0,0.02301814]
[1644263344268,0.07875149,44441.0,44440.0,0.02225537]
[1644263344477,1.45,44440.0,44439.0,0.00076279]
[1644263344669,1.650416,44440.0,44439.0,0.00076279]
[1644263344868,1.800416,44440.0,44439.0,0.00076279]
[1644263345068,1.8069992,44440.0,44437.0,8.55e-06]
[1644263345271,0.64723154,44439.0,44437.0,8.55e-06]
[1644263345471,0.62733707,44438.0,44437.0,8.55e-06]
[1644263345672,0.72233707,44438.0,44437.0,8.55e-06]
[1644263345877,0.05,44428.0,44411.0,0.40242768]
[1644263346073,0.045,44427.0,44411.0,0.1198881]
[1644263346273,0.264695,44416.0,44415.0,0.2159591]
[1644263346871,0.056293,44417.0,44415.0,0.2159591]
[1644263349622,0.03685896,44417.0,44414.0,0.00076253]
[1644263349818,0.27847432,44416.0,44414.0,0.00076253]
[1644263350218,0.27847432,44416.0,44411.0,0.1198881]
[1644263350519,0.27847432,44416.0,44413.0,0.00076254]
[1644263350719,0.32847432,44416.0,44413.0,0.21017816]
[1644263350922,0.32847432,44416.0,44413.0,0.00076254]
[1644263351565,0.32847432,44416.0,44412.0,0.00076255]
[1644263351764,0.05,44416.0,44412.0,0.00076255]
[1644263351966,0.08685896,44417.0,44412.0,0.00076255]
[1644263352366,0.26265119,44413.0,44412.0,0.00076255]
[1644263352565,0.31265119,44413.0,44411.0,0.32062492]
[1644263352765,0.31894819,44413.0,44412.0,0.00073704]
[1644263352967,0.3186773,44413.0,44412.0,0.00073704]
[1644263353768,0.3186773,44413.0,44411.0,0.32062492]
[1644263355414,0.3186773,44413.0,44411.0,0.1198881]
[1644263359873,0.20250479,44412.0,44411.0,0.1198881]
[1644263360271,0.24750479,44412.0,44411.0,0.1198881]
[1644263360870,0.8788789,44412.0,44411.0,0.1198881]
[1644263361270,0.99149511,44412.0,44411.0,0.1198881]
[1644263361471,1.09149511,44412.0,44411.0,0.1198881]
[1644263363917,1.14149511,44412.0,44411.0,0.1198881]
[1644263364116,1.45,44411.0,44409.0,0.00071469]
[1644263364316,0.745416,44410.0,44409.0,0.00071469]
[1644263364516,0.795416,44410.0,44409.0,0.00071469]
[1644263364716,0.056307,44409.0,44402.0,0.01859805]
[1644263365017,0.245416,44408.0,44407.0,0.00071472]
[1644263365220,0.295416,44408.0,44407.0,0.00071472]
[1644263365418,0.795416,44408.0,44407.0,0.00071472]
[1644263365816,0.795416,44408.0,44402.0,0.01859805]
[1644263366017,0.200416,44406.0,44405.0,0.00071474]
[1644263366216,0.245416,44406.0,44405.0,0.00071474]
[1644263367065,0.056305,44405.0,44399.0,0.05]
[1644263367366,0.700416,44404.0,44403.0,0.00071679]
[1644263368265,0.5,44404.0,44399.0,0.05]
[1644263368469,0.200416,44403.0,44398.0,0.19134103]
[1644263369467,0.05,44401.0,44398.0,0.19134103]
[1644263369868,0.05,44400.0,44398.0,0.18634103]
[1644263370327,0.200416,44399.0,44398.0,0.18634103]
[1644263370518,0.200145,44399.0,44398.0,0.18634103]
[1644263371118,0.05,44400.0,44398.0,0.18634103]
[1644263371718,0.05,44399.0,44398.0,0.18634103]
[1644263372118,0.05,44401.0,44398.0,0.18634103]
[1644263372319,0.200131,44400.0,44398.0,0.18634103]
[1644263372519,0.5,44402.0,44398.0,0.18634103]
[1644263372720,0.5,44402.0,44398.0,0.23634103]
[1644263372927,0.5,44402.0,44400.0,0.321472]
[1644263373121,0.3902,44402.0,44400.0,0.321472]
[1644263373320,0.3104,44402.0,44401.0,0.045]
[1644263373520,0.00276757,44406.0,44402.0,0.08461424]
[1644263373721,0.00276757,44406.0,44403.0,0.69769078]
[1644263373922,0.5,44421.0,44405.0,1.45]
[1644263373923,0.3,44419.0,44405.0,1.45]
[1644263374169,0.5,44421.0,44406.0,0.49679228]
[1644263374369,0.05,44424.0,44407.0,0.02131241]
[1644263374570,0.40032197,44433.0,44408.0,0.366472]
[1644263374571,0.00246218,44422.0,44408.0,0.366472]
[1644263374770,0.00246218,44422.0,44416.0,0.23655379]
[1644263374972,0.00246218,44422.0,44416.0,0.29283079]
[1644263375170,0.00246218,44422.0,44417.0,0.321472]
[1644263375574,0.02749197,44429.0,44418.0,0.02250803]
[1644263375768,0.02749197,44429.0,44421.0,0.02250803]
[1644263375769,0.00061563,44423.0,44421.0,0.02250803]
[1644263376369,0.00061563,44423.0,44420.0,0.07878003]
[1644263376668,0.200131,44428.0,44420.0,0.07878003]
[1644263376870,0.00061565,44424.0,44420.0,0.07878003]
[1644263377919,0.20267553,44425.0,44420.0,0.07878003]
[1644263378120,0.00061565,44424.0,44420.0,0.07878003]
[1644263378516,0.00061565,44424.0,44420.0,0.0763516]
[1644263379117,0.20267553,44425.0,44420.0,0.0200796]
[1644263379319,0.02749197,44422.0,44411.0,0.112553]
[1644263379525,0.00061471,44424.0,44407.0,0.3692]
[1644263379526,0.02749197,44414.0,44407.0,0.3692]
[1644263379718,0.02749197,44414.0,44404.0,0.02250803]
[1644263380319,0.02749197,44414.0,44408.0,0.20238032]
[1644263380520,0.10965473,44414.0,44408.0,0.20238032]
[1644263380920,0.02749197,44413.0,44408.0,0.20238032]
[1644263381124,0.08216276,44414.0,44408.0,0.20238032]
[1644263381322,0.07749197,44413.0,44408.0,0.20238032]
[1644263381575,0.05,44413.0,44408.0,0.20238032]
[1644263381777,0.08216276,44414.0,44408.0,0.20238032]
[1644263381977,0.08216276,44414.0,44404.0,0.15632179]
[1644263382377,0.02749197,44411.0,44404.0,0.15632179]
[1644263382578,0.02749197,44411.0,44405.0,0.321472]
[1644263382779,0.056291,44413.0,44404.0,0.15632179]
[1644263382978,0.02749197,44411.0,44408.0,0.0207762]
[1644263383780,0.02749197,44411.0,44400.0,0.45558]
[1644263383781,0.200131,44410.0,44400.0,0.08818]
[1644263383981,0.02749197,44411.0,44400.0,0.08818]
[1644263383982,0.056306,44408.0,44400.0,0.08818]
[1644263384381,0.02749197,44403.0,44400.0,0.08818]
[1644263384582,0.06645556,44402.0,44400.0,0.08818]
[1644263384781,0.28176126,44405.0,44400.0,0.08818]
[1644263384981,0.056308,44403.0,44400.0,0.08818]
[1644263385182,0.08379997,44403.0,44400.0,0.08818]
[1644263386035,0.056308,44403.0,44400.0,0.08818]
[1644263386931,0.112615,44406.0,44402.0,0.26355529]
[1644263386932,0.056302,44406.0,44402.0,0.26355529]
[1644263387637,0.02749197,44412.0,44402.0,0.28606332]
[1644263387832,0.045,44413.0,44402.0,0.26355529]
[1644263388033,0.045,44413.0,44399.0,0.02322194]
[1644263388034,0.02749197,44404.0,44399.0,0.02322194]
[1644263388233,0.65,44403.0,44397.0,0.01489503]
[1644263388431,0.08769756,44398.0,44397.0,0.01489503]
[1644263388638,0.02749197,44400.0,44395.0,0.02250803]
[1644263388831,0.33628417,44408.0,44395.0,0.02250803]
[1644263389069,0.2659416,44405.0,44399.0,0.24674031]
[1644263389269,0.200131,44404.0,44399.0,0.24674031]
[1644263389467,0.02749197,44401.0,44399.0,0.24674031]
[1644263389668,0.02749197,44401.0,44399.0,0.24174031]
[1644263389868,0.02749197,44404.0,44399.0,0.24174031]
[1644263390068,0.056306,44403.0,44400.0,0.02250803]
[1644263390270,0.056306,44403.0,44399.0,0.24174031]
[1644263390271,0.26612654,44405.0,44399.0,0.24174031]
[1644263390469,0.29361851,44405.0,44399.0,0.24174031]
[1644263391069,0.29343357,44405.0,44399.0,0.24174031]
[1644263391274,0.29361852,44405.0,44399.0,0.24174031]
[1644263391471,0.34992152,44405.0,44399.0,0.24174031]
[1644263392071,0.07856773,44404.0,44397.0,0.02250803]
[1644263392572,0.07856773,44404.0,44397.0,0.02327051]
[1644263393220,0.08380197,44402.0,44397.0,0.02327051]
[1644263393418,0.08380197,44402.0,44397.0,0.00076248]
[1644263393721,0.02749197,44399.0,44397.0,0.00076247]
[1644263394517,0.200131,44398.0,44397.0,0.00076247]
[1644263394718,0.250131,44398.0,44392.0,0.02250803]
[1644263394919,0.250131,44398.0,44396.0,0.00076248]
[1644263395918,0.07255976,44395.0,44389.0,0.02250803]
[1644263397366,0.19916807,44391.0,44390.0,0.00076256]
[1644263397765,0.056316,44396.0,44390.0,0.00076256]
[1644263397967,0.056316,44396.0,44392.0,0.02250803]
[1644263398166,0.045,44397.0,44392.0,0.02250803]
[1644263398566,0.04472898,44397.0,44392.0,0.02327056]
[1644263398868,0.08433262,44394.0,44392.0,0.02327056]
[1644263399465,0.08433262,44394.0,44392.0,0.00076253]
[1644263399666,0.08433262,44394.0,44391.0,0.00076255]
[1644263399866,0.08433262,44394.0,44391.0,0.02327058]
[1644263400319,0.02220612,44397.0,44391.0,0.02327058]
[1644263400516,0.056313,44398.0,44391.0,0.02327058]
[1644263400715,0.02749197,44397.0,44388.0,0.42056588]
[1644263400914,0.02749197,44397.0,44392.0,0.02324449]
[1644263401114,0.056313,44398.0,44392.0,0.00073646]
[1644263401314,0.08380497,44398.0,44392.0,0.00073646]
[1644263401716,0.13380497,44398.0,44392.0,0.00073646]